bitfinex-derivatives/quotes_BTCF0:USTF0_20240825
["timestamp","ask_amount","ask_price","bid_price","bid_amount"]
[1724561777798,0.002,64176.0,64175.0,0.25636584]
[1724561779999,0.002,64176.0,64175.0,0.19422381]
[1724561780333,0.002,64176.0,64175.0,0.169875]
[1724561780391,0.002,64176.0,64175.0,0.19422322]
[1724561783443,0.002,64176.0,64175.0,0.169875]
[1724561783652,0.002,64176.0,64175.0,0.1942231]
[1724561783801,0.002,64176.0,64175.0,0.169875]
[1724561784103,0.002,64176.0,64175.0,0.1942231]
[1724561786105,0.002,64176.0,64175.0,0.169875]
[1724561788700,0.002,64176.0,64175.0,0.19422309]
[1724561790203,0.002,64176.0,64175.0,0.19422287]
[1724561793411,0.002,64176.0,64175.0,0.169875]
[1724561793602,0.002,64176.0,64175.0,0.19422287]
[1724561795810,0.002,64176.0,64175.0,0.169875]
[1724561796307,0.002,64176.0,64175.0,0.24755254]
[1724561797210,0.002,64176.0,64175.0,0.169875]
[1724561798517,0.002,64176.0,64175.0,0.530675]
[1724561798916,0.002,64176.0,64175.0,0.60835254]
[1724561801613,0.03207687,64176.0,64175.0,0.530675]
[1724561802408,0.03207687,64176.0,64175.0,0.55502159]
[1724561803326,0.03207687,64176.0,64175.0,0.55502158]
[1724561804305,0.11098487,64176.0,64175.0,0.55502158]
[1724561804519,0.002,64176.0,64175.0,0.67367671]
[1724561805615,0.002,64176.0,64175.0,0.67367667]
[1724561805825,0.002,64176.0,64175.0,0.75155167]
[1724561806017,0.0459,64186.0,64178.0,0.077872]
[1724561806223,0.0459,64186.0,64185.0,0.09]
[1724561806814,0.0459,64186.0,64185.0,0.167863]
[1724561807921,0.0459,64186.0,64185.0,0.21438547]
[1724561808117,0.0459,64186.0,64185.0,0.167863]
[1724561808318,0.0459,64186.0,64185.0,0.21438023]
[1724561808612,0.0529,64186.0,64185.0,0.21438023]
[1724561809918,0.0579,64186.0,64185.0,0.21538023]
[1724561813223,0.012,64186.0,64185.0,0.168863]
[1724561814327,0.012,64186.0,64185.0,0.21536526]
[1724561816319,0.012,64186.0,64185.0,0.12536526]
[1724561816618,0.012,64186.0,64185.0,0.168863]
[1724561817621,0.179862,64186.0,64185.0,0.001]
[1724561817929,0.077869,64180.0,64178.0,0.04650226]
[1724561818125,0.528669,64180.0,64177.0,0.04650226]
[1724561818432,0.528669,64180.0,64174.0,0.21613886]
[1724561819125,0.528669,64180.0,64179.0,0.00123377]
[1724561822830,0.167869,64180.0,64179.0,0.00123377]
[1724561823031,0.889469,64180.0,64179.0,0.00123377]
[1724561825726,0.167869,64180.0,64179.0,0.00123377]
[1724561826033,0.889469,64180.0,64179.0,0.00123377]
[1724561827051,0.167869,64180.0,64179.0,0.00123377]
[1724561827229,0.528669,64180.0,64179.0,0.00123377]
[1724561827725,0.167869,64180.0,64179.0,0.00123377]
[1724561827922,0.528669,64180.0,64179.0,0.00123377]
[1724561828835,0.167869,64180.0,64179.0,0.00123377]
[1724561829043,0.528669,64180.0,64179.0,0.00123377]
[1724561830004,0.167869,64180.0,64179.0,0.00123377]
[1724561830246,0.528669,64180.0,64179.0,0.00123377]
[1724561830735,0.167869,64180.0,64179.0,0.00123377]
[1724561830937,0.528669,64180.0,64179.0,0.00123377]
[1724561831155,0.167869,64180.0,64179.0,0.00123377]
[1724561831536,0.528669,64180.0,64179.0,0.00123377]
[1724561833544,0.167869,64180.0,64179.0,0.00123377]
[1724561833740,0.528669,64180.0,64179.0,0.00123377]
[1724561836034,0.167869,64180.0,64179.0,0.00123377]
[1724561836235,0.528669,64180.0,64179.0,0.00123377]
[1724561836639,0.167869,64180.0,64179.0,0.00123377]
[1724561836849,0.528669,64180.0,64179.0,0.00123377]
[1724561837840,0.167869,64180.0,64179.0,0.00123377]
[1724561838042,0.528669,64180.0,64179.0,0.00123377]
[1724561839047,0.167869,64180.0,64179.0,0.00123377]
[1724561839239,0.528669,64180.0,64179.0,0.00123377]
[1724561839859,0.167869,64180.0,64179.0,0.00123377]
[1724561840237,0.528669,64180.0,64179.0,0.00123377]
[1724561840842,0.438669,64180.0,64179.0,0.00123377]
[1724561841043,0.528669,64180.0,64179.0,0.00123377]
[1724561841639,0.167869,64180.0,64179.0,0.00123377]
[1724561841840,0.528669,64180.0,64179.0,0.00123377]
[1724561842766,0.167869,64180.0,64179.0,0.00123377]
[1724561842842,0.528669,64180.0,64179.0,0.00123377]
[1724561843149,0.167869,64180.0,64179.0,0.00123377]
[1724561843446,0.528669,64180.0,64179.0,0.00123377]
[1724561844557,0.19795132,64180.0,64179.0,0.00123377]
[1724561844942,0.55875132,64180.0,64179.0,0.00123377]
[1724561845916,0.19795132,64180.0,64179.0,0.00123377]
[1724561846037,0.55875132,64180.0,64179.0,0.00123377]
[1724561846441,0.46875132,64180.0,64179.0,0.00123377]
[1724561846849,0.55875132,64180.0,64179.0,0.00123377]
[1724561847547,0.62213496,64180.0,64179.0,0.00123377]
[1724561847952,0.528669,64180.0,64179.0,0.00123377]
[1724561848258,0.62213496,64180.0,64179.0,0.00123377]
[1724561853465,1.08957496,64180.0,64179.0,0.00123377]
[1724561853656,1.518978,64180.0,64179.0,1e-08]
[1724561853852,1.542378,64180.0,64179.0,1e-08]
[1724561854563,1.57246013,64180.0,64179.0,1e-08]
[1724561857352,1.57246069,64180.0,64179.0,1e-08]
[1724561857554,1.17246069,64180.0,64179.0,1e-08]
[1724561859555,1.14906069,64180.0,64179.0,1e-08]
[1724561860654,1.17246069,64180.0,64179.0,1e-08]
[1724561861366,0.81166069,64180.0,64179.0,1e-08]
[1724561861574,1.17246069,64180.0,64179.0,1e-08]
[1724561864058,0.81166069,64180.0,64179.0,1e-08]
[1724561864252,1.17246069,64180.0,64179.0,1e-08]
[1724561864453,0.077877,64174.0,64173.0,0.00023377]
[1724561864676,0.26132086,64174.0,64173.0,0.00023377]
[1724561867065,0.27332086,64174.0,64173.0,0.00023377]
[1724561868969,0.27432086,64174.0,64173.0,0.00023377]
[1724561869259,0.28632086,64174.0,64173.0,0.00023377]
[1724561871362,0.192877,64174.0,64173.0,0.00023377]
[1724561873798,0.553677,64174.0,64173.0,0.00023377]
[1724561875864,0.192877,64174.0,64173.0,0.00023377]
[1724561876262,0.553677,64174.0,64173.0,0.00023377]
[1724561876473,0.192877,64174.0,64173.0,0.00023377]
[1724561876775,0.553677,64174.0,64173.0,0.00023377]
[1724561877665,0.192877,64174.0,64173.0,0.00023377]
[1724561877866,0.553677,64174.0,64173.0,0.00023377]
[1724561878177,0.192877,64174.0,64173.0,0.00023377]
[1724561879284,0.553677,64174.0,64173.0,0.00023377]
[1724561879466,0.192877,64174.0,64173.0,0.00023377]
[1724561879772,0.553677,64174.0,64173.0,0.00023377]
[1724561883980,0.192877,64174.0,64173.0,0.00023377]
[1724561884281,0.553677,64174.0,64173.0,0.00023377]
[1724561888774,0.192877,64174.0,64173.0,0.00023377]
[1724561888976,0.553677,64174.0,64173.0,0.00023377]
[1724561890376,0.192877,64174.0,64173.0,0.00023377]
[1724561890578,0.553677,64174.0,64173.0,0.00023377]
[1724561891386,0.192877,64174.0,64173.0,0.00023377]
[1724561891789,0.553677,64174.0,64173.0,0.00023377]
[1724561893685,0.192877,64174.0,64173.0,0.00023377]
[1724561893885,0.553677,64174.0,64173.0,0.00023377]
[1724561894785,0.192877,64174.0,64173.0,0.00023377]
[1724561894986,0.553677,64174.0,64173.0,0.00023377]
[1724561896791,0.55715522,64174.0,64173.0,0.00023377]
[1724561898282,0.64715522,64174.0,64173.0,0.00023377]
[1724561901187,0.28635522,64174.0,64173.0,0.00023377]
[1724561901396,0.64715522,64174.0,64173.0,0.00023377]
[1724561901596,0.553677,64174.0,64173.0,0.00023377]
[1724561903698,0.192877,64174.0,64173.0,0.00023377]
[1724561907893,0.102877,64174.0,64173.0,0.00023377]
[1724561908107,0.10288776,64174.0,64173.0,0.54559177]
[1724561908378,0.025,64174.0,64173.0,0.54559177]
[1724561908503,0.025,64174.0,64173.0,0.6319711]
[1724561910594,0.025,64174.0,64173.0,0.10246114]
[1724561910909,0.025,64174.0,64173.0,0.07811177]
[1724561911795,0.025,64174.0,64173.0,0.54559177]
[1724561913500,0.025,64174.0,64173.0,0.07811177]
[1724561913797,0.05507903,64174.0,64173.0,0.07811177]
[1724561914188,0.13398487,64174.0,64173.0,0.07811177]
[1724561914401,0.1640639,64174.0,64173.0,0.07811177]
[1724561916798,0.025,64174.0,64173.0,0.07811177]
[1724561917991,0.025,64174.0,64173.0,0.12462414]
[1724561928604,0.025,64174.0,64173.0,0.07811177]
[1724561934006,0.025,64174.0,64173.0,0.14014173]
[1724561935507,0.025,64174.0,64173.0,0.07811177]
[1724561936419,0.025,64174.0,64173.0,0.14017132]
[1724561936617,0.025,64174.0,64173.0,0.07811177]
[1724561947918,0.0550788,64174.0,64173.0,0.07811177]
[1724561948526,0.025,64174.0,64173.0,0.07811177]
[1724561949218,0.025,64174.0,64173.0,0.10245922]
[1724561950124,0.0061128,64174.0,64173.0,1.04781722]
[1724561950327,0.005,64174.0,64173.0,1.13781722]
[1724561950624,0.005,64174.0,64173.0,1.18438059]
[1724561950829,0.005,64174.0,64173.0,1.13781722]
[1724561950830,0.002,64174.0,64173.0,1.13781722]
[1724561951029,0.002,64174.0,64173.0,1.25647384]
[1724561951438,0.002,64174.0,64173.0,1.23212639]
[1724561951732,0.002,64174.0,64173.0,1.25747319]
[1724561952128,0.3608,64182.0,64181.0,0.077868]
[1724561952323,0.07788144,64185.0,64184.0,0.077864]
[1724561952524,0.07788144,64185.0,64184.0,0.167864]
[1724561953130,0.07788144,64185.0,64184.0,0.077864]
[1724561953728,0.08788144,64185.0,64184.0,0.078864]
[1724561954929,0.09688144,64185.0,64184.0,0.079864]
[1724561955435,0.019,64185.0,64184.0,0.079864]
[1724561966331,0.019,64185.0,64184.0,0.169864]
[1724561975238,0.09688144,64185.0,64184.0,0.169864]
[1724561976034,0.019,64185.0,64184.0,1.037264]
[1724561976241,0.019,64185.0,64184.0,1.09929903]
[1724561976446,0.019,64185.0,64184.0,1.037264]
[1724561977248,0.019,64185.0,64184.0,1.09926631]
[1724561978671,0.019,64185.0,64184.0,1.037264]
[1724561980046,0.019,64185.0,64184.0,1.398064]
[1724561985041,0.04907237,64185.0,64184.0,1.398064]
[1724561987652,0.04907237,64185.0,64184.0,0.998064]
[1724561988137,0.019,64185.0,64184.0,0.908064]
[1724561988340,0.019,64185.0,64184.0,0.530664]
[1724561988541,0.019,64185.0,64184.0,0.59260911]
[1724561989847,0.019,64185.0,64184.0,0.440664]
[1724561994055,0.019,64185.0,64184.0,0.079864]
[1724561995157,0.019,64185.0,64184.0,0.10420881]
[1724561995958,0.019,64185.0,64184.0,0.079864]
[1724561996355,0.019,64185.0,64184.0,0.10420881]
[1724561997556,0.019,64185.0,64184.0,0.079864]
[1724561998957,0.019,64185.0,64184.0,0.169864]
[1724562004760,0.019,64185.0,64184.0,0.23181119]
[1724562012869,0.019,64185.0,64184.0,0.169864]
[1724562017370,0.019,64185.0,64184.0,0.19420881]
[1724562018268,0.04907436,64185.0,64184.0,0.19420881]
[1724562018876,0.04907436,64185.0,64184.0,0.169864]
[1724562019069,0.04907436,64185.0,64184.0,0.19420881]
[1724562021069,0.04907436,64185.0,64184.0,0.169864]
[1724562021676,0.04907436,64185.0,64184.0,0.19420881]
[1724562022285,0.019,64185.0,64184.0,0.19420881]
[1724562022542,0.019,64185.0,64184.0,0.169864]
[1724562022870,0.019,64185.0,64184.0,0.19420881]
[1724562024169,0.019,64185.0,64184.0,0.169864]
[1724562025869,0.019,64185.0,64184.0,0.19420861]
[1724562027567,0.019,64185.0,64184.0,0.169864]
[1724562030470,0.019,64185.0,64184.0,0.19420861]
[1724562031369,0.019,64185.0,64184.0,0.169864]
[1724562032268,0.019,64185.0,64184.0,0.2136843]
[1724562032469,0.00023377,64186.0,64185.0,0.077863]
[1724562032673,0.00023377,64186.0,64185.0,0.10220761]
[1724562033180,0.52889577,64186.0,64185.0,0.02434461]
[1724562033385,0.52889577,64186.0,64184.0,0.002]
[1724562033386,0.077863,64185.0,64184.0,0.04856336]
[1724562034071,0.077863,64185.0,64184.0,0.04756336]
[1724562034274,0.077863,64185.0,64184.0,0.001]
[1724562034664,0.077863,64185.0,64182.0,0.04656336]
[1724562034665,0.077866,64183.0,64182.0,0.04656336]
[1724562034865,0.2457303,64183.0,64182.0,0.04656336]
[1724562035069,0.2457303,64183.0,64179.0,0.13997048]
[1724562035070,0.077868,64181.0,64179.0,0.07787]
[1724562035283,0.077868,64181.0,64180.0,0.02434696]
[1724562035673,0.077868,64181.0,64180.0,0.08639899]
[1724562036276,0.077868,64181.0,64180.0,0.08639555]
[1724562036776,0.077868,64181.0,64179.0,0.07787]
[1724562036777,0.077868,64181.0,64179.0,0.13991859]
[1724562037680,0.080868,64181.0,64179.0,0.13991859]
[1724562037880,0.081868,64181.0,64179.0,0.13991859]
[1724562038145,0.078868,64181.0,64179.0,0.07787]
[1724562038281,0.080868,64181.0,64179.0,0.07787]
[1724562039474,0.080868,64181.0,64180.0,0.02434722]
[1724562040778,0.081868,64181.0,64180.0,0.02434722]
[1724562040985,0.081868,64181.0,64179.0,0.13991859]
[1724562040986,0.081868,64181.0,64179.0,0.07787]
[1724562041218,0.083868,64181.0,64179.0,0.07787]
[1724562041517,0.083868,64181.0,64180.0,0.04651767]
[1724562041669,0.083868,64181.0,64179.0,0.07787]
[1724562042172,0.081868,64181.0,64179.0,0.07787]
[1724562042480,0.081868,64181.0,64180.0,0.04650808]
[1724562043481,0.078868,64181.0,64180.0,0.04650808]
[1724562043677,0.078868,64181.0,64180.0,0.12437708]
[1724562043678,0.079868,64181.0,64180.0,0.12437708]
[1724562043987,0.082868,64181.0,64180.0,0.10221615]
[1724562044174,0.083868,64181.0,64180.0,0.10221615]
[1724562045974,0.083868,64181.0,64180.0,0.16426474]
[1724562046175,0.083868,64181.0,64180.0,0.10221615]
[1724562047493,0.083868,64181.0,64180.0,0.10221596]
[1724562049884,0.173868,64181.0,64180.0,0.10221596]
[1724562052583,0.173868,64181.0,64180.0,0.16426455]
[1724562052885,0.173868,64181.0,64180.0,0.10221596]
[1724562053834,0.173868,64181.0,64180.0,0.077869]
[1724562054060,0.173868,64181.0,64180.0,0.10221628]
[1724562055483,0.083868,64181.0,64180.0,0.10221628]
[1724562055687,0.006,64181.0,64180.0,0.25426487]
[1724562056080,0.006,64181.0,64180.0,0.19221628]
[1724562057177,0.006,64181.0,64180.0,0.167869]
[1724562057382,0.006,64181.0,64180.0,0.19221476]
[1724562062188,0.006,64181.0,64180.0,0.55301476]
[1724562062995,0.006,64181.0,64180.0,0.55301382]
[1724562064287,0.006,64181.0,64180.0,0.57248981]
[1724562064486,0.006,64181.0,64180.0,0.65003359]
[1724562064687,0.006,64181.0,64180.0,0.76867529]
[1724562064986,0.006,64181.0,64180.0,0.69113151]
[1724562065188,0.006,64181.0,64180.0,0.76866226]
[1724562066189,0.006,64181.0,64180.0,0.67165532]
[1724562066397,0.006,64181.0,64180.0,0.67165411]
[1724562067289,0.006,64181.0,64180.0,0.74914973]
[1724562067795,0.003,64181.0,64180.0,0.74914973]
[1724562067989,0.004,64181.0,64180.0,0.74914973]
[1724562068189,0.004,64181.0,64180.0,0.38834973]
[1724562068389,0.004,64181.0,64180.0,0.74914973]
[1724562068592,0.004,64181.0,64180.0,0.82701873]
[1724562068796,0.004,64181.0,64180.0,1.21696311]
[1724562068996,0.004,64181.0,64180.0,1.23643763]
[1724562069299,0.001,64181.0,64180.0,1.23643763]
[1724562069583,0.001,64181.0,64180.0,1.1926195]
[1724562069690,0.001,64181.0,64180.0,0.87563578]
[1724562069923,0.001,64181.0,64180.0,1.5728934]
[1724562070132,0.001,64181.0,64180.0,1.5738934]
[1724562070589,0.001,64181.0,64180.0,1.13079578]
[1724562070790,0.001,64181.0,64180.0,1.13078884]
[1724562071102,0.00023377,64186.0,64185.0,0.077863]
[1724562071296,0.00023377,64186.0,64185.0,0.55300526]
[1724562071901,0.00023377,64186.0,64185.0,0.46300526]
[1724562072191,0.00523377,64186.0,64185.0,0.55300526]
[1724562072734,0.00523377,64186.0,64185.0,0.528663]
[1724562072900,0.01123377,64186.0,64185.0,0.55400533]
[1724562073900,0.01123377,64186.0,64185.0,0.59940533]
[1724562075694,0.01123377,64186.0,64185.0,0.575063]
[1724562076008,0.01123377,64186.0,64185.0,0.59940489]
[1724562081313,0.07785,64196.0,64194.0,0.077852]
[1724562081524,0.07785,64196.0,64195.0,0.09]
[1724562081810,0.06220805,64198.0,64195.0,0.09]
[1724562082417,0.012,64196.0,64195.0,0.167851]
[1724562082906,0.025,64196.0,64195.0,0.168851]
[1724562084609,0.012,64196.0,64195.0,0.168851]
[1724562084904,0.06920805,64198.0,64197.0,0.077849]
[1724562085106,0.07220805,64198.0,64197.0,0.077849]
[1724562085303,0.06520805,64198.0,64197.0,0.077849]
[1724562085912,0.06220805,64198.0,64197.0,0.077849]
[1724562086114,0.06420805,64198.0,64197.0,0.078849]
[1724562088019,0.07720805,64198.0,64197.0,0.079849]
[1724562088625,0.07020805,64198.0,64197.0,0.078849]
[1724562088917,0.07720805,64198.0,64197.0,0.079849]
[1724562091443,0.015,64198.0,64197.0,0.12626547]
[1724562092418,0.0772072,64198.0,64197.0,0.12626547]
[1724562092614,0.015,64198.0,64197.0,0.079849]
[1724562093521,0.04506909,64198.0,64197.0,0.079849]
[1724562094716,0.04506716,64198.0,64197.0,0.079849]
[1724562096132,0.04506716,64198.0,64197.0,0.440649]
[1724562096623,0.04506716,64198.0,64197.0,0.50253762]
[1724562096624,0.015,64198.0,64197.0,0.50253762]
[1724562096822,0.015,64198.0,64197.0,0.440649]
[1724562097127,0.015,64198.0,64197.0,0.079849]
[1724562097625,0.015,64198.0,64197.0,0.440649]
[1724562097826,0.015,64198.0,64197.0,0.079849]
[1724562098219,0.015,64198.0,64197.0,0.440649]
[1724562099525,0.015,64198.0,64197.0,0.079849]
[1724562099726,0.015,64198.0,64197.0,0.440649]
[1724562100829,0.015,64198.0,64197.0,0.54283615]
[1724562101026,0.015,64198.0,64197.0,0.518498]
[1724562101326,0.015,64198.0,64197.0,0.530649]
[1724562104819,0.015,64198.0,64197.0,0.50253345]
[1724562106997,0.015,64198.0,64197.0,0.440649]
[1724562107437,0.015,64198.0,64197.0,0.59253345]
[1724562107928,0.006,64198.0,64197.0,0.59153345]
[1724562108134,0.013,64198.0,64197.0,0.59253345]
[1724562110227,0.180847,64198.0,64197.0,0.3628]
[1724562110441,0.180847,64198.0,64197.0,0.002]
[1724562110629,0.077855,64192.0,64191.0,0.04643148]
[1724562110829,0.077856,64191.0,64190.0,0.04666525]
[1724562111032,0.23798185,64191.0,64190.0,0.00023377]
[1724562111230,0.175756,64191.0,64190.0,0.00023377]
[1724562111634,0.23797535,64191.0,64190.0,0.00023377]
[1724562113641,0.23797535,64191.0,64190.0,0.00123377]
[1724562114438,0.24497535,64191.0,64190.0,0.00123377]
[1724562114938,0.60877535,64191.0,64190.0,0.00123377]
[1724562115328,0.543556,64191.0,64190.0,0.00123377]
[1724562115539,0.551556,64191.0,64190.0,0.00223377]
[1724562117531,0.190756,64191.0,64190.0,0.00223377]
[1724562117836,0.551556,64191.0,64190.0,0.00223377]
[1724562118032,0.190756,64191.0,64190.0,0.00223377]
[1724562118232,0.551556,64191.0,64190.0,0.00223377]
[1724562118437,0.190756,64191.0,64190.0,0.00223377]
[1724562119332,0.551556,64191.0,64190.0,0.00223377]
[1724562121840,0.190756,64191.0,64190.0,0.00223377]
[1724562122037,0.551556,64191.0,64190.0,0.00223377]
[1724562122642,0.190756,64191.0,64190.0,0.00223377]
[1724562122939,0.551556,64191.0,64190.0,0.00223377]
[1724562126141,0.453656,64191.0,64190.0,0.08009077]
[1724562126378,0.3758,64191.0,64190.0,0.08009077]
[1724562126849,0.3758,64191.0,64190.0,0.17689077]
[1724562128336,0.3748,64191.0,64190.0,0.17689077]
[1724562128733,0.3678,64191.0,64190.0,0.17589077]
[1724562128930,0.3668,64191.0,64190.0,0.17589077]
[1724562129140,0.3738,64191.0,64190.0,0.17689077]
[1724562129529,0.3668,64191.0,64190.0,0.17589077]
[1724562129740,0.3608,64191.0,64190.0,0.17589077]
[1724562129934,0.07778231,64194.0,64193.0,0.077854]
[1724562130143,0.3608,64194.0,64193.0,0.167854]
[1724562132441,0.3658,64194.0,64193.0,0.167854]
[1724562134635,0.3628,64194.0,64193.0,0.167854]
[1724562134839,0.3658,64194.0,64193.0,0.167854]
[1724562135457,0.005,64194.0,64193.0,0.167854]
[1724562135648,0.3658,64194.0,64193.0,0.167854]
[1724562138243,0.4279456,64194.0,64193.0,0.21428548]
[1724562139348,0.3658,64194.0,64193.0,0.21428548]
[1724562140447,0.3658,64194.0,64193.0,0.167854]
[1724562141248,0.0672607,64194.0,64193.0,0.167854]
[1724562141441,0.005,64194.0,64193.0,0.528654]
[1724562146534,0.005,64194.0,64193.0,0.167854]
[1724562147353,0.005,64194.0,64193.0,0.528654]
[1724562148056,0.005,64194.0,64193.0,0.167854]
[1724562148260,0.005,64194.0,64193.0,0.528654]
[1724562152750,0.005,64194.0,64193.0,0.167854]
[1724562152985,0.005,64194.0,64193.0,0.528654]
[1724562156952,0.005,64194.0,64193.0,0.167854]
[1724562157459,0.005,64194.0,64193.0,0.528654]
[1724562164967,0.005,64194.0,64193.0,0.167854]
[1724562165361,0.005,64194.0,64193.0,0.528654]
[1724562165568,0.005,64194.0,64193.0,0.167854]
[1724562165760,0.005,64194.0,64193.0,0.528654]
[1724562167771,0.005,64194.0,64193.0,0.55299371]
[1724562167958,0.005,64194.0,64193.0,0.19219371]
[1724562168164,0.005,64194.0,64193.0,0.55299371]
[1724562168771,0.005,64194.0,64193.0,0.528654]
[1724562169266,0.005,64194.0,64193.0,0.36392158]
[1724562169467,0.005,64194.0,64193.0,0.72472158]
[1724562170375,0.005,64194.0,64193.0,0.64727603]
[1724562170867,0.11403673,64194.0,64193.0,0.528654]
[1724562171075,0.14410479,64194.0,64193.0,0.528654]
[1724562173170,0.03506806,64194.0,64193.0,0.528654]
[1724562173774,0.005,64194.0,64193.0,0.528654]
[1724562174375,0.005,64194.0,64193.0,0.59065324]
[1724562174567,0.005,64194.0,64193.0,0.528654]
[1724562175268,0.005,64194.0,64193.0,0.59064686]
[1724562175872,0.005,64194.0,64193.0,0.61498884]
[1724562176264,0.005,64194.0,64193.0,0.22984686]
[1724562176486,0.005,64194.0,64193.0,0.25418884]
[1724562179178,0.005,64194.0,64193.0,0.22984686]
[1724562179398,0.005,64194.0,64193.0,0.25418884]
[1724562181382,0.06726685,64194.0,64193.0,0.25418884]
[1724562181979,0.06726685,64194.0,64193.0,0.22984686]
[1724562182276,0.06726685,64194.0,64193.0,0.19219598]
[1724562185009,0.06726685,64194.0,64193.0,0.167854]
[1724562185175,0.06726685,64194.0,64193.0,0.19219598]
[1724562185380,0.06726685,64194.0,64193.0,0.167854]
[1724562185580,0.06726685,64194.0,64193.0,0.19219598]
[1724562187487,0.005,64194.0,64193.0,0.167854]
[1724562194811,0.005,64194.0,64193.0,0.077854]
[1724562195009,0.005,64194.0,64193.0,0.167854]
[1724562196215,0.005,64194.0,64193.0,0.22980888]
[1724562198306,0.06725578,64194.0,64193.0,0.22980888]
[1724562200413,0.06725578,64194.0,64193.0,0.167854]
[1724562201316,0.005,64194.0,64193.0,0.167854]
[1724562201620,0.06728463,64194.0,64193.0,0.167854]
[1724562201918,0.005,64194.0,64193.0,0.167854]
[1724562202618,0.005,64194.0,64193.0,0.528654]
[1724562206714,0.005,64194.0,64193.0,0.167854]
[1724562207022,0.005,64194.0,64193.0,0.528654]
[1724562209314,0.005,64194.0,64193.0,0.167854]
[1724562209615,0.005,64194.0,64193.0,0.528654]
[1724562212122,0.06729064,64194.0,64193.0,0.528654]
[1724562213228,0.005,64194.0,64193.0,0.528654]
[1724562215920,0.03506804,64194.0,64193.0,0.528654]
[1724562218025,0.005,64194.0,64193.0,0.528654]
[1724562218928,0.005,64194.0,64193.0,0.167854]
[1724562219326,0.005,64194.0,64193.0,0.528654]
[1724562221020,0.005,64194.0,64193.0,0.438654]
[1724562221327,0.11436392,64194.0,64193.0,0.50066388]
[1724562223431,0.0521,64194.0,64193.0,0.50066388]
[1724562224128,0.11437334,64194.0,64193.0,0.13986388]
[1724562225033,0.19222534,64194.0,64193.0,0.13986388]
[1724562227741,0.129952,64194.0,64193.0,0.13986388]
[1724562230629,0.0521,64194.0,64193.0,0.22986388]
[1724562230830,0.11437012,64194.0,64193.0,0.167854]
[1724562231139,0.06727012,64194.0,64193.0,0.167854]
[1724562231334,0.005,64194.0,64193.0,0.167854]
[1724562231528,0.06727012,64194.0,64193.0,0.167854]
[1724562231738,0.005,64194.0,64193.0,0.167854]
[1724562232032,0.06727012,64194.0,64193.0,0.167854]
[1724562234134,0.06727012,64194.0,64193.0,0.528654]
[1724562236231,0.06727012,64194.0,64193.0,0.438654]
[1724562236555,0.06727012,64194.0,64193.0,0.528654]
[1724562237130,0.005,64194.0,64193.0,0.528654]
[1724562238632,0.005,64194.0,64193.0,0.167854]
[1724562239340,0.005,64194.0,64193.0,0.528654]
[1724562239929,0.005,64194.0,64193.0,0.438654]
[1724562240129,0.005,64194.0,64193.0,0.528654]
[1724562241640,0.53459012,64194.0,64193.0,0.438654]
[1724562242141,0.47232,64194.0,64193.0,0.438654]
[1724562243533,0.005,64194.0,64193.0,0.438654]
[1724562244942,0.082852,64194.0,64193.0,0.077854]
[1724562246544,0.082852,64194.0,64193.0,0.13985548]
[1724562254149,0.082852,64194.0,64193.0,0.077854]
[1724562258452,0.077854,64193.0,64192.0,0.06200148]
[1724562259667,0.078854,64193.0,64192.0,0.06200148]
[1724562261341,0.080854,64193.0,64192.0,0.06200148]
[1724562264946,0.077855,64192.0,64191.0,0.06200148]
[1724562267562,0.078855,64192.0,64191.0,0.06200148]
[1724562271155,0.078855,64192.0,64190.0,0.07809077]
[1724562271762,0.167856,64191.0,64190.0,0.07809077]
[1724562271963,0.167856,64191.0,64190.0,0.14014241]
[1724562272261,0.167856,64191.0,64190.0,0.14114241]
[1724562272787,0.167856,64191.0,64190.0,0.06328541]
[1724562273005,0.167856,64191.0,64190.0,0.00123377]
[1724562273154,0.077856,64191.0,64190.0,0.00123377]
[1724562273547,0.077856,64191.0,64190.0,0.09123377]
[1724562273865,0.077856,64191.0,64190.0,0.15328541]
[1724562274952,0.077856,64191.0,64190.0,0.23114241]
[1724562277361,0.077856,64191.0,64190.0,0.16909077]
[1724562277564,0.077856,64191.0,64190.0,0.23114241]
[1724562277768,0.36172,64195.0,64190.0,0.23114241]
[1724562277769,0.43954991,64195.0,64194.0,0.077852]
[1724562277957,0.3608,64195.0,64194.0,0.077852]
[1724562279038,0.3648,64195.0,64194.0,0.077852]
[1724562279356,0.004,64195.0,64194.0,0.077852]
[1724562280262,0.008,64195.0,64194.0,0.077852]
[1724562286269,0.008,64195.0,64194.0,0.13990364]
[1724562291275,0.07025915,64195.0,64194.0,0.13990364]
[1724562292577,0.07025915,64195.0,64194.0,0.077852]
[1724562293176,0.07025915,64195.0,64194.0,0.13990364]
[1724562293382,0.008,64195.0,64194.0,0.077852]
[1724562296467,0.008,64195.0,64194.0,0.438652]
[1724562296873,0.008,64195.0,64194.0,0.077852]
[1724562297183,0.008,64195.0,64194.0,0.438652]
[1724562297970,0.008,64195.0,64194.0,0.077852]
[1724562298171,0.008,64195.0,64194.0,0.438652]
[1724562301382,0.008,64195.0,64194.0,0.077852]
[1724562301585,0.008,64195.0,64194.0,0.438652]
[1724562303174,0.008,64195.0,64194.0,0.077852]
[1724562303483,0.008,64195.0,64194.0,0.438652]
[1724562304081,0.008,64195.0,64194.0,0.077852]
[1724562304282,0.008,64195.0,64194.0,0.438652]
[1724562305585,0.008,64195.0,64194.0,0.50064327]
[1724562305787,0.008,64195.0,64194.0,0.438652]
[1724562306191,0.008,64195.0,64194.0,0.50064327]
[1724562309080,0.008,64195.0,64194.0,0.13984327]
[1724562309480,0.008,64195.0,64194.0,0.077852]
[1724562321189,0.008,64195.0,64194.0,0.167852]
[1724562321888,0.008,64195.0,64194.0,0.21437854]
[1724562322590,0.008,64195.0,64194.0,0.167852]